Cogmind - Beta 10 @@@ ROGUE MODE // 2020.09.15 @ 20:12:20 Player: MTF Result: Destroyed by G-73 Enforcer with Phase Gun Performance ------------- Evolutions (8) 4000 Regions Visited (27) 5400 Robots Destroyed (523) 2615 Value Destroyed (30320) 30320 Prototype IDs (49) 980 Alien Tech Used (9) 1800 Bonus (16222) 16222 TOTAL SCORE: 61337 Bonus ------- Triggered High Security 500 High Alert Combat Kills 6733 Follower Combat Kills 4805 Entered Garrisons 1800 Used RIF Installer 4500 Scanned by Researcher 500 Friendly Fire -2616 Cogmind --------- Core Integrity 0/1450 Matter 290/300 Energy 98/100 System Corruption 16% Temperature Cool (9) Movement Core (50) Location -2/Testing Parts ------- > --- POWER (2) -------- (None) > --- PROPULSION (2) --- High-density Centrium Heavy Treads > --- UTILITY (15) ----- Advanced Signal Interpreter Advanced Armor Integrity Analyzer Relay Coupler [NC] (38) Relay Coupler [NC] (43) Relay Coupler [Demolisher] (37) > --- WEAPON (4) ------- (None) > --- INVENTORY (4) ---- Sigix Broadsword Peak State ------------ > --- POWER ------------ Particle Reactor Light Quantum Reactor > --- PROPULSION ------- Biometal Heavy Treads > --- UTILITY ---------- Experimental Cooling System High-capacity Storage Unit High-capacity Storage Unit High-capacity Storage Unit High-capacity Storage Unit High-capacity Storage Unit Advanced Signal Interpreter Advanced Terrain Scan Processor Experimental Targeting Computer Advanced Weapon Cycler Advanced Phase Shifter Centrium Medium Armor Plating EM Disruption Field Advanced Force Field Relay Coupler [Sentry] > --- WEAPON ----------- Enhanced Nova Cannon Hypervelocity Mass Driver Sigix Broadsword > --- INVENTORY -------- Compact Particle Reactor Light Quantum Reactor Biometal Heavy Treads Biometal Heavy Treads High-capacity Storage Unit Advanced Energy Well Matter Compressor Matter Compressor Experimental Sensor Array Experimental Terrain Scanner Advanced Armor Integrity Analyzer Advanced Force Field Advanced Force Field Advanced Force Field Relay Coupler [NC] Relay Coupler [NC] Relay Coupler [NC] Relay Coupler [NC] Relay Coupler [NC] Relay Coupler [Swarmer] Relay Coupler [Sentry] Relay Coupler [Sentry] Relay Coupler [Demolisher] System Restoration Module Dimensional Node Initializer High-powered Transdimensional Reconstructor Subatomic Replicator Matter Drive HERF Cannon Core Cannon Hypervelocity Coil Gun Hypervelocity Mass Driver Tesla Bomb Launcher Tesla Bomb Launcher Sigix Terminator Improved Remote Datajack Advanced Remote Datajack Core Stripper [Rating: 185] Favorites ----------- Power Cooled Fission Core Engine Improved Deuterium Engine Power Core Cooled Fission Core Reactor Light Quantum Reactor Propulsion Light Treads Treads Light Treads Leg Aluminum Leg Wheel Armored Wheel Hover Unit Aerolev Unit Utility High-capacity Storage Unit Device Experimental Sensor Array Storage High-capacity Storage Unit Processor Advanced Signal Interpreter Hackware Relay Coupler [Sentry] Protection Improved Powered Armor Artifact Phase Armor Weapon Enhanced Autogun Energy Gun EM Pulse Gun Energy Cannon Improved EM Pulse Cannon Ballistic Gun Enhanced Autogun Ballistic Cannon Hypervelocity Mass Driver Launcher Mini Grenade Launcher Special Weapon Improved Remote Datajack Impact Weapon Great Maul Slashing Weapon Sigix Broadsword Piercing Weapon Force Lance Special Melee Weapon Improved Datajack Build | -11 -10 -10 -9 -9 -9 -8 -8 -8 -8 -8 -7 -7 -7 -7 -6 -6 -5 -5 -4 -4 -4 -4 -3 -3 -3 -2 -2 ------- Run | Scr Mat Min Mat Min Exi Min Mat Gar Mat Gar Fac Gar Fac Gar Fac Gar Fac Gar Fac Gar Fac Gar Res Qua Gar Res Tes Slots Evolved 16 | . . . 2 . . . 2 . . . 2 . . . 2 . 2 . 2 . . . 2 . . 2 . Power 1 | . . . . . . . . . . . 1 . . . . . . . . . . . . . . . . Propulsion . | . . . . . . . . . . . . . . . . . . . . . . . . . . . . Utility 13 | . . . 2 . . . 2 . . . 1 . . . 2 . 2 . 2 . . . 2 . . . . Weapon 2 | . . . . . . . . . . . . . . . . . . . . . . . . . . 2 . Parts Attached 686 | 1 12 1 24 3 2 . 43 27 27 13 2 35 21 11 4 19 47 18 30 20 11 11 41 93 29 114 27 Power 43 | . 2 . 4 . . . 2 1 2 . . 3 3 . . 1 2 . . 1 1 . 1 5 3 9 3 Engine 11 | . 2 . 3 . . . 2 1 . . . . 2 . . . . . . . . . . 1 . . . Core 12 | . . . 1 . . . . . 2 . . 3 1 . . . 2 . . . . . 1 1 1 . . Reactor 20 | . . . . . . . . . . . . . . . . 1 . . . 1 1 . . 3 2 9 3 Propulsion 77 | . 5 . 11 1 . . 11 8 16 3 . 8 1 3 . 1 1 1 . . . . 1 1 . 2 3 Treads 59 | . 5 . 11 1 . . 10 4 10 3 . 5 1 1 . . . 1 . . . . 1 1 . 2 3 Leg . | . . . . . . . . . . . . . . . . . . . . . . . . . . . . Wheel 17 | . . . . . . . . 4 6 . . 3 . 2 . 1 1 . . . . . . . . . . Hover 1 | . . . . . . . 1 . . . . . . . . . . . . . . . . . . . . Flight . | . . . . . . . . . . . . . . . . . . . . . . . . . . . . Utility 267 | 1 3 . 4 . 2 . 7 3 3 . 2 7 10 4 4 4 24 3 20 10 7 6 19 41 10 59 14 Device 130 | . . . . . . . 1 . . . . . . . 2 . 15 1 8 5 3 2 10 28 6 42 7 Storage 31 | 1 3 . . . 2 . 2 1 1 . . . 2 1 . 1 2 . . . 1 . 1 6 1 5 1 Processor 9 | . . . 1 . . . . 1 . . . . . . 1 . 1 . 1 . . . 1 1 . 2 . Hackware 44 | . . . . . . . . . . . 1 1 8 3 1 2 2 2 5 3 2 4 2 . 1 4 3 Protection 50 | . . . 3 . . . 4 1 2 . 1 6 . . . 1 4 . 6 2 1 . 5 5 1 5 3 Artifact 3 | . . . . . . . . . . . . . . . . . . . . . . . . 1 1 1 . Weapon 299 | . 2 1 5 2 . . 23 15 6 10 . 17 7 4 . 13 20 14 10 9 3 5 20 46 16 44 7 Energy Gun 10 | . 1 . 1 . . . 2 . . . . . . . . . 1 . . . . . . 5 . . . Energy Cannon 43 | . . . . . . . 1 1 . 2 . 6 1 1 . 1 2 . . . . 1 . 5 6 13 3 Ballistic Gun 56 | . 1 1 4 1 . . 16 7 4 3 . 2 2 . . 4 4 3 . . 1 . . 1 . 1 1 Ballistic Cannon 49 | . . . . . . . . . . . . . . . . . . 2 6 4 1 2 9 12 2 11 . Launcher 66 | . . . . 1 . . 4 5 1 5 . 8 2 2 . 2 5 3 . . . . 5 3 6 12 2 Special Weapon 43 | . . . . . . . . . . . . . 1 . . 6 6 4 4 4 . . 4 9 2 3 . Impact Weapon 4 | . . . . . . . . . 1 . . . 1 1 . . . . . . . . . . . 1 . Slashing Weapon 12 | . . . . . . . . 2 . . . . . . . . 2 2 . . . . . 2 . 3 1 Piercing Weapon 15 | . . . . . . . . . . . . . . . . . . . . 1 1 2 2 9 . . . Special Melee Weapon 1 | . . . . . . . . . . . . 1 . . . . . . . . . . . . . . . Unidentified Prototypes 24 | . . . 1 . . . 4 . . . . . . . 1 . 2 . 1 . . . 2 7 . 3 3 Parts Lost 103 | . 2 1 3 2 . . 4 2 4 2 . 19 1 2 . . 1 1 2 1 . . 3 3 3 23 24 Power 20 | . 1 . 1 . . . . . 2 . . 3 . . . . . . . . . . 1 2 2 4 4 Propulsion 14 | . . . . 1 . . 2 . . 1 . 7 . 1 . . . . . . . . . . . 1 1 Utility 45 | . . . 1 . . . 2 1 1 . . 6 . . . . . . 2 . . . 1 1 1 15 14 Weapon 24 | . 1 1 1 1 . . . 1 1 1 . 3 1 1 . . 1 1 . 1 . . 1 . . 3 5 Highest Loss Streak 24 | . 1 1 2 2 . . 2 1 2 1 . 7 1 1 . . 1 1 1 1 . . 1 2 1 5 24 Average Slot Usage (%) 94 | . 98 100 97 100 100 100 99 99 99 98 92 78 96 99 100 100 99 94 93 92 94 90 94 91 92 86 60 Engine 3 | . 13 14 9 11 11 11 9 9 3 . . . 6 15 13 7 1 . . . . . . . . . . Core 3 | . . . 1 . . . . . 4 9 7 6 4 . . . 7 11 10 8 1 . 1 6 2 . . Reactor 2 | . . . . . . . . . . . . . . . . 4 1 . . 1 8 10 6 1 5 7 5 Treads 9 | . 25 28 21 22 22 22 17 17 10 17 15 14 14 13 . . . 4 5 5 5 5 4 4 4 3 3 Wheel 1 | . . . . . . . . . 7 . . . . 1 13 13 11 . . . . . . . . . . Device 3 | . . . . . . . . . . . . . . . 3 . 5 8 6 2 6 2 6 11 11 11 9 Storage 30 | . 28 28 22 22 22 22 36 44 45 45 38 38 38 38 33 33 29 29 26 26 26 26 26 23 27 22 16 Processor 8 | . . . 9 11 11 11 8 . . . . . . . 6 6 11 11 12 15 15 15 14 14 14 15 10 Hackware 8 | . . . . . . . . . . . 3 2 14 15 15 13 11 7 16 20 17 15 18 12 8 5 1 Protection 4 | . . . 10 11 11 11 8 9 9 9 11 4 . . . 6 3 5 4 2 1 3 2 1 3 3 5 Energy Cannon 1 | . . . . . . . . . 3 1 . 5 2 . 6 . . . . . . . . . 2 2 2 Ballistic Gun 5 | . 14 22 21 14 11 11 17 14 11 15 15 1 2 . . 6 3 1 . . . . . . . . . Ballistic Cannon 1 | . . . . . . . . . . . . . . . . . . 3 5 4 . 1 3 2 1 3 . Special Weapon 2 | . . . . . . . . . . . . . 1 6 . 4 3 2 2 3 5 3 1 1 3 . . Naked Turns . | . . . . . . . . . . . . . . . . . . . . . . . . . . . . Heaviest Build 271 | 17 41 41 52 49 79 79 151 183 184 180 179 181 193 196 197 200 223 231 231 225 214 227 233 271 265 267 253 Greatest Support 90 | 20 40 40 43 43 43 43 43 40 40 40 40 40 40 40 24 24 24 75 75 75 75 75 75 75 75 90 90 Greatest Overweight (x) 15 | . 1 1 1 1 1 1 7 15 7 4 4 13 4 8 8 8 9 9 3 2 2 3 3 3 3 3 2 Average Overweight (x) 3 | . . . . 1 1 1 3 4 5 4 4 4 4 4 8 8 8 2 2 2 2 2 2 2 2 2 . Largest Inventory Capacity 44 | 8 16 16 16 16 20 20 36 44 44 44 44 44 44 44 44 44 44 44 44 44 44 44 44 44 44 44 44 Average Capacity 40 | 6 11 16 16 16 19 20 35 43 44 44 44 44 44 44 44 44 44 44 44 44 44 44 44 44 44 44 31 Most Carried 44 | 6 13 12 16 16 20 20 36 44 44 44 43 44 44 44 43 44 44 44 44 44 44 44 44 44 44 44 43 Average Carried 38 | 6 9 11 15 15 19 20 30 40 43 43 43 38 42 42 42 43 43 43 43 43 42 42 40 43 42 40 28 Final Capacity 44 | 8 16 16 16 16 20 20 36 44 44 44 44 44 44 44 44 44 44 44 44 44 44 44 44 44 44 44 4 Final Carried 44 | 6 12 12 16 16 20 20 36 44 43 44 43 44 39 44 42 44 44 44 42 44 41 43 44 44 44 44 2 Class Distribution -------------------- 51% | Botlord-Mutant 18% | Bothacker-Mutant 12% | Hauler-Mutant 7% | Mutant 7% | Botlord-Assassin Dominant Class ---------------- Mutant | -10/Materials Mutant | -10/Mines Mutant | -9/Materials Mutant | -9/Mines Hauler-Mutant | -9/Exiles Hauler-Mutant | -8/Mines Hauler-Mutant | -8/Materials Hauler-Mutant | -8/Garrison Bothacker-Mutant | -8/Materials Bothacker-Mutant | -8/Garrison Bothacker-Mutant | -7/Factory Bothacker-Mutant | -7/Garrison Bothacker-Mutant | -7/Factory Botlord-Mutant | -7/Garrison Botlord-Mutant | -6/Factory Botlord-Mutant | -6/Garrison Botlord-Mutant | -5/Factory Botlord-Mutant | -5/Garrison Botlord-Mutant | -4/Factory Botlord-Mutant | -4/Garrison Botlord-Mutant | -4/Factory Botlord-Mutant | -4/Garrison Botlord-Mutant | -3/Research Botlord-Mutant | -3/Quarantine Botlord-Mutant | -3/Garrison Botlord-Mutant | -2/Research Botlord-Mutant | -2/Testing Resources | -11 -10 -10 -9 -9 -9 -8 -8 -8 -8 -8 -7 -7 -7 -7 -6 -6 -5 -5 -4 -4 -4 -4 -3 -3 -3 -2 -2 ----------- Run | Scr Mat Min Mat Min Exi Min Mat Gar Mat Gar Fac Gar Fac Gar Fac Gar Fac Gar Fac Gar Fac Gar Res Qua Gar Res Tes Matter Collected 17439 | 231 263 41 472 235 20 . 797 538 552 339 . 463 534 404 . 509 831 715 967 929 100 477 1539 2042 835 3432 174 Remotely . | . . . . . . . . . . . . . . . . . . . . . . . . . . . . Salvage Created 26169 | 75 597 89 1139 133 . . 1579 779 1058 545 . 634 379 315 . 204 946 689 202 593 . 122 2085 2730 1731 8956 589 Parts 1156 | 3 50 6 87 7 . . 96 34 59 26 . 30 22 13 . 12 39 30 8 18 . 1 84 146 45 325 15 Haulers Intercepted 15 | . 2 . 2 . . . 3 . 2 . . . . . . . . . . . . . . 1 . 4 1 Recyclers Shooed 16 | . 1 . . . . . 3 . . . . . 1 . . . 5 . . . . . . . . 6 . Parts Field Recycled . | . . . . . . . . . . . . . . . . . . . . . . . . . . . . Retrieved Matter . | . . . . . . . . . . . . . . . . . . . . . . . . . . . . Parts Self-Destructed . | . . . . . . . . . . . . . . . . . . . . . . . . . . . . Prevented . | . . . . . . . . . . . . . . . . . . . . . . . . . . . . Kills | -11 -10 -10 -9 -9 -9 -8 -8 -8 -8 -8 -7 -7 -7 -7 -6 -6 -5 -5 -4 -4 -4 -4 -3 -3 -3 -2 -2 ------- Run | Scr Mat Min Mat Min Exi Min Mat Gar Mat Gar Fac Gar Fac Gar Fac Gar Fac Gar Fac Gar Fac Gar Res Qua Gar Res Tes Combat Hostiles Destroyed 374 | . 16 4 24 8 . . 29 20 15 20 . 23 8 3 . 4 11 11 5 9 . . 22 28 18 81 15 Melee 10 | . . . . . . . . . . . . 1 . . . . . . . . . . . 1 . 7 1 Guns 87 | . 16 4 19 2 . . 16 5 9 4 . . 1 . . 1 4 2 . . . . . 2 . 1 1 Cannons 97 | . . . . . . . 2 . 4 4 . 3 2 . . . . 3 5 9 . . 11 16 2 35 1 AOE 119 | . . . 5 6 . . 11 15 1 12 . 18 5 3 . 3 7 3 . . . . 2 4 8 7 9 Classes Destroyed 24 | 1 5 . 1 3 . . 4 1 1 . . . 1 . . . . 1 . . . . . 4 . 1 1 Worker 45 | . . . . . . . 3 . 3 . . . 2 . . . 1 . . . . . 7 5 . 19 5 Builder 21 | . . . . 2 . . 1 . . . . . . . . . 1 . . . . . 6 1 . 8 2 Tunneler 8 | . . . . . . . 1 . . . . . . . . . . . . . . . 1 . . 6 . Hauler 15 | . 2 . 2 . . . 3 . 2 . . . . . . . . . . . . . . 1 . 4 1 Recycler 21 | 1 . . 2 . . . 2 . . . . . . . . . 3 . . . . . 1 4 . 8 . Mechanic 4 | . . . . . . . 1 . . . . . 1 . . . . . . . . . . . . 2 . Operator 5 | . 1 . 1 . . . 1 . 1 . . . . . . . . . . . . . 1 . . . . Watcher 20 | . 2 . 3 . . . 2 . 3 . . . . . . . 2 . 1 . . . 1 . . 4 2 Swarmer 69 | . 9 3 8 . . . 6 10 1 3 . 6 3 4 . 3 7 1 . . . . . . 4 1 . Saboteur 1 | . . . . . . . . . . . . . . . . . . . . . . . . . . . 1 Grunt 166 | . 7 1 11 1 . . 16 5 8 11 . 11 3 . . . 2 8 . 7 . . 14 8 9 40 4 Brawler 13 | . . . . . . . . 1 . 1 . . 1 . . . . 1 . 1 . . 1 . . 6 1 Duelist 9 | . . . . . . . . . 1 1 . 2 . . . . . . . 1 . . 2 . . 1 1 Protector 2 | . . . . . . . . . . . . . . . . . . . . . . . . . . 2 . Researcher 3 | . . . . . . . . . . . . . . . . . . . . . . . . 2 . . 1 Sentry 26 | . . . 5 . . . 5 3 4 3 . 1 1 . . . . . . . . . . . 1 3 . Demolisher 1 | . . . . 1 . . . . . . . . . . . . . . . . . . . . . . . Specialist 3 | . . . . . . . . . . . . . . . . . . . . . . . . 3 . . . Hunter 39 | . . . . . . . 2 1 1 1 . 4 . . . . . . . . . . . 7 3 12 8 Programmer 38 | . . . . . . . . . . . . . 1 . . 1 2 . 5 . . . 4 8 1 16 . Q-Series 2 | . . . . . . . . . . . . . . . . . . . . . . . . 1 . 1 . Behemoth 4 | . . . . . . . . . . . . . . . . . . 1 . . . 1 1 . 1 . . Alpha 7 1 | . . . . . . . . . . . . . . . . . . . . . . . . 1 . . . Assembled 7 | . . . . 7 . . . . . . . . . . . . . . . . . . . . . . . Best Kill Streak 40 | 1 3 3 8 2 . . 6 10 4 5 . 9 6 2 . 3 4 5 2 3 . . 8 7 6 40 18 Combat Bots Only 20 | . 3 3 8 2 . . 5 10 4 5 . 9 3 2 . 3 3 5 2 3 . . 7 4 6 20 8 Max Kills in Single Turn 18 | 1 2 1 3 2 . . 4 3 2 2 . 3 3 1 . 3 3 1 1 2 . 1 2 2 1 4 18 Gunslinging 1 | . 1 . . . . . . . . . . . . . . . . . . . . . . . . . . Exploded 8 | . . . 3 1 . . 3 3 1 2 . 3 2 1 . 3 3 1 . . . . 1 2 1 1 8 Melee 1 | . . . . . . . . . . . . 1 . . . . . . . . . . . 1 . 1 1 Uniques/NPCs Destroyed . | . . . . . . . . . . . . . . . . . . . . . . . . . . . . Combat | -11 -10 -10 -9 -9 -9 -8 -8 -8 -8 -8 -7 -7 -7 -7 -6 -6 -5 -5 -4 -4 -4 -4 -3 -3 -3 -2 -2 -------- Run | Scr Mat Min Mat Min Exi Min Mat Gar Mat Gar Fac Gar Fac Gar Fac Gar Fac Gar Fac Gar Fac Gar Res Qua Gar Res Tes Damage Taken 32168 | . 462 150 878 742 . . 1270 688 1049 628 . 2775 571 220 . 354 928 497 1244 662 24 222 1958 2715 871 8283 4977 Core 4053 | . 116 17 222 73 . . 168 27 59 92 . 496 79 11 . 69 71 45 163 20 . 19 183 586 155 704 678 Absorbed by Shields 4694 | . . . . . . . . . . . . . . . . . 156 186 18 . . . . 280 678 3056 320 Reduced by Siege Mode 378 | . . . . . . . . . . . . . . . . . . 12 . . . . 21 28 . 244 73 Redirected to Core 332 | . . . . . . . . . . . . . . . . . . . . . . . . 245 87 . . Core Remaining (%) 57 | 100 . 46 . . . 26 . . . 37 . . . 16 . 91 . 88 . . . 82 . . 28 . . Volleys Fired 1412 | 7 51 10 71 26 . . 90 49 63 52 . 48 45 40 . 64 80 55 46 61 24 33 94 93 67 220 23 Largest 2 | 2 2 2 2 2 . . 2 2 2 2 . 1 2 1 . 2 2 2 2 2 1 2 2 2 2 2 1 Hottest 300 | 60 70 70 68 43 . . 69 69 69 69 . 69 69 69 . 69 55 122 132 132 66 132 132 148 132 300 94 Shots Fired 1958 | 14 102 20 142 37 . . 165 64 104 66 . 48 50 40 . 69 98 65 70 74 24 34 138 143 74 295 22 Gun 788 | 14 102 20 142 25 . . 150 37 82 38 . 2 10 4 . 22 60 17 . . 3 . . 45 . 8 7 Cannon 668 | . . . . . . . 8 11 21 11 . 21 12 7 . 4 . 17 53 46 1 12 92 80 40 225 7 Launcher 212 | . . . . 12 . . 7 16 1 17 . 25 4 3 . 2 10 11 . . . . 22 11 20 43 8 Special 290 | . . . . . . . . . . . . . 24 26 . 41 28 20 17 28 20 22 24 7 14 19 . Kinetic 1146 | 7 51 16 131 25 . . 150 37 82 38 . 2 10 4 . 22 60 34 53 46 4 10 92 74 13 178 7 Thermal 30 | . 5 4 . . . . . . . . . . . . . . . . . . . . . 7 1 12 1 Explosive 92 | . . . . 12 . . 7 16 1 17 . 25 4 3 . 2 5 . . . . . . . . . . Electromagnetic 400 | 7 46 . 11 . . . 8 11 21 11 . 21 12 7 . 4 5 11 . . . 2 22 55 46 86 14 Robot Hit Streak 33 | 2 12 4 27 11 . . 25 27 28 33 . 19 13 11 . 10 13 13 12 15 12 8 14 24 29 33 12 Robot Miss Streak 4 | 3 3 2 4 3 . . 3 3 2 2 . 1 2 2 . 2 4 3 2 3 1 1 4 2 3 2 1 Penetration Max 2 | . . . . . . . . . . . . . . . . . 1 . . 1 . 1 2 1 . 1 . Secondary Targets 4 | . 1 1 . . . . . 1 1 . . . . . . . . . . . . . . . . . . Max Gunslinging Chain 1 | . 1 1 . . . . . 1 1 . . . . . . . . . . . . . . . . . . Shots Hit Robots 1436 | 7 66 13 107 21 . . 127 40 71 45 . 37 49 30 . 44 72 42 55 50 17 27 91 111 42 255 17 Core Hits 803 | 2 27 5 53 23 . . 79 36 34 39 . 47 21 11 . 10 40 18 11 11 . 2 49 61 23 177 24 Critical Hits 236 | . 1 . 1 . . . . 1 . . . . . . . . 1 6 26 20 . . 51 46 3 79 1 Critical Kills 81 | . 1 . 1 . . . . . . . . . . . . . . 3 5 7 . . 12 19 1 32 . Critical Parts Destroyed 150 | . . . . . . . . 1 . . . . . . . . 1 2 21 13 . . 39 26 1 45 1 Melee Attacks 164 | . . . . . . . . 3 2 . . 2 14 3 . . 10 4 1 1 4 42 6 28 . 44 . Kinetic 1 | . . . . . . . . . . . . . . . . . . . . . . . . . . 1 . Impact 8 | . . . . . . . . . 2 . . . 3 3 . . . . . . . . . . . . . Slashing 62 | . . . . . . . . 3 . . . . . . . . 10 4 1 . . . . 1 . 43 . Piercing 80 | . . . . . . . . . . . . . . . . . . . . 1 4 42 6 27 . . . Sneak Attacks 25 | . . . . . . . . . . . . 1 4 . . . . . . . . 7 2 4 . 7 . Combat Hostiles 2 | . . . . . . . . . . . . . . . . . . . . . . . . . . 2 . Follow-up Attacks . | . . . . . . . . . . . . . . . . . . . . . . . . . . . . Damage Inflicted 74675 | 59 990 135 1614 708 . . 2608 2855 1597 2362 . 2651 1140 421 . 530 2051 1215 771 507 . 905 3912 4233 2646 16656 24109 Guns 8686 | 59 761 135 1333 190 . . 1524 404 911 371 . . 117 35 . 160 1245 167 . . . . . 844 . 254 176 Cannons 12582 | . . . . . . . 194 338 529 249 . 424 283 218 . 122 . 191 771 507 . 65 1482 1253 565 5128 263 Explosions 48238 | . 229 . 270 518 . . 870 1909 157 1742 . 2195 712 168 . 248 771 804 . . . . 2110 1521 2081 8284 23649 Melee 4869 | . . . . . . . . 204 . . . . . . . . 35 53 . . . 840 257 537 . 2943 . Ramming 300 | . . . 11 . . . 20 . . . . 32 28 . . . . . . . . . 63 78 . 47 21 Kinetic 14980 | 34 247 96 1204 190 . . 1524 404 911 371 . . 117 35 . 160 1245 358 771 507 . 65 1482 1307 31 3745 176 Thermal 24873 | . 94 39 228 . . . . 49 40 . . . 145 . . . . . . . . . 123 . 19 1162 22974 Explosive 8731 | . 185 . . 518 . . 870 1860 117 1742 . 2195 567 168 . 248 261 . . . . . . . . . . Electromagnetic 21039 | 25 464 . 171 . . . 194 338 529 249 . 424 283 218 . 122 510 804 . . . . 1987 2311 2596 8876 938 Impact . | . . . . . . . . . . . . . . . . . . . . . . . . . . . . Slashing 3118 | . . . . . . . . 204 . . . . . . . . 35 53 . . . . . . . 2826 . Piercing 1634 | . . . . . . . . . . . . . . . . . . . . . . 840 257 537 . . . Highest Corruption 16 | . . . . . . . . . . . . . . . . . 3 . 12 12 . . 9 14 14 16 16 Average Corruption 8 | . . . . . . . . . . . . . . . . . 2 . 4 7 . . 6 9 10 7 16 Corruption Purged 24 | . . . . . . . . . . . . . . . . . 3 . . 12 . . . 5 4 . . Effects 352 | . . . . . . . . . . . . . . . . . 10 . 11 42 . . 27 79 105 59 19 Message Errors 73 | . . . . . . . . . . . . . . . . . 4 . 3 14 . . 5 15 19 8 5 Matter Fused 71 | . . . . . . . . . . . . . . . . . 1 . 2 9 . . 3 20 25 10 1 Heat Flow Errors 25 | . . . . . . . . . . . . . . . . . 1 . . 5 . . . 7 8 4 . Energy Discharges 37 | . . . . . . . . . . . . . . . . . 2 . 2 5 . . 1 7 10 10 . Parts Rejected 3 | . . . . . . . . . . . . . . . . . . . . . . . 1 . 1 1 . Data Loss (minor) 27 | . . . . . . . . . . . . . . . . . . . . 4 . . 5 8 8 1 1 Data Loss (major) 13 | . . . . . . . . . . . . . . . . . . . . 4 . . . 2 4 2 1 Misfires 10 | . . . . . . . . . . . . . . . . . . . . 1 . . 1 2 3 2 1 Alerts 7 | . . . . . . . . . . . . . . . . . . . . . . . . . 4 2 1 Misdirections 25 | . . . . . . . . . . . . . . . . . . . 1 . . . . 3 15 3 3 Targeting Errors 57 | . . . . . . . . . . . . . . . . . 2 . 3 . . . 10 15 8 15 4 Weapon Failures 4 | . . . . . . . . . . . . . . . . . . . . . . . 1 . . 1 2 Overload Shots . | . . . . . . . . . . . . . . . . . . . . . . . . . . . . Overflow Damage 6464 | . 30 . 67 9 . . . 122 13 112 . 84 28 . . . 2 45 . . . 24 43 169 27 1168 4521 Projectiles 170 | . . . . . . . . . 13 . . . . . . . . . . . . . . 19 1 137 . Explosions 5447 | . 30 . 67 9 . . . 122 . 112 . 84 28 . . . 2 45 . . . . 25 102 26 274 4521 Melee 847 | . . . . . . . . . . . . . . . . . . . . . . 24 18 48 . 757 . Knockbacks 100 | . . . . . . . . . . . . . 1 . . . . 2 11 7 . . 15 17 . 47 . Impact 3 | . . . . . . . . . . . . . 1 . . . . . . . . . 1 1 . . . Kinetic 90 | . . . . . . . . . . . . . . . . . . 2 11 7 . . 13 14 . 43 . Secondary 7 | . . . . . . . . . . . . . . . . . . . . . . . 1 2 . 4 . Self-Inflicted Damage 2909 | . 67 . 164 44 . . . 115 16 44 . 312 97 . . 7 . . . . . . 131 113 139 277 1383 Shots 56 | . 1 . 4 3 . . . 4 1 3 . 9 2 . . 1 . . . . . . 5 4 6 11 2 Rammed 16 | . . . 3 . . . 2 . . . . 2 2 . . . . . . . . . 2 1 . 4 . Targets Rammed 18 | . . . 3 . . . 2 . . . . 3 2 . . . . . . . . . 2 1 . 4 1 Kicked . | . . . . . . . . . . . . . . . . . . . . . . . . . . . . Crushed 2 | . . . . . . . . . . . . 1 . . . . . . . . . . . . . . 1 Highest Temperature 382 | 20 75 27 75 16 . . 227 120 171 157 . 80 112 136 . 144 266 366 312 245 51 63 382 160 376 374 61 Average Temperature 49 | 18 19 10 17 6 . . 37 27 33 46 . 19 33 29 . 25 31 87 80 48 20 23 66 75 80 89 24 Received Heat Transfer 4781 | . 102 18 258 . . . 495 117 315 234 . 558 129 42 . 87 180 157 7 165 9 42 273 169 61 1025 338 Effects 6 | . . . . . . . . . . . . . . . . . . . . . . . . . 2 4 . Shutdowns 2 | . . . . . . . . . . . . . . . . . . . . . . . . . 1 1 . Energy Bleed 3 | . . . . . . . . . . . . . . . . . . . . . . . . . . 3 . Interference 1 | . . . . . . . . . . . . . . . . . . . . . . . . . 1 . . Siege Activations 20 | . . . . . . . . . . . . . . . . . . 2 . . . 1 2 2 2 10 1 Total Turns 390 | . . . . . . . . . . . . . . . . . . 41 . . . 3 28 48 10 218 42 Longest Duration 46 | . . . . . . . . . . . . . . . . . . 24 . . . 3 22 36 6 46 42 Robots Corrupted 78 | . . . . . . . . 2 2 . . 2 1 1 . . . 3 . . . . 9 6 11 38 3 Combat Hostiles 61 | . . . . . . . . . 1 . . 1 . . . . . 3 . . . . 9 5 8 31 3 Parts Fried 146 | . . . . . . . 4 4 3 1 . 3 1 1 . 1 . 4 . . . . 19 16 16 66 7 Impact Corruptions 4 | . . . . . . . . . . . . . . . . . . . . . . . 1 2 . 1 . Robots Melted . | . . . . . . . . . . . . . . . . . . . . . . . . . . . . Combat Hostiles . | . . . . . . . . . . . . . . . . . . . . . . . . . . . . Parts Melted 3 | . . . . . . . . . . . . . . . . . . . . 2 . . . . . 1 . Heat Transferred 1911 | . 148 111 150 . . . . 50 50 . . . 100 . . . . . . . . . 150 . 50 1022 80 Parts Sabotaged . | . . . . . . . . . . . . . . . . . . . . . . . . . . . . Parts Stolen . | . . . . . . . . . . . . . . . . . . . . . . . . . . . . Parts Stripped . | . . . . . . . . . . . . . . . . . . . . . . . . . . . . Power Chain Reactions 18 | . 1 . 3 . . . . 1 1 . . . . . . . 1 . . . . . 1 . 1 9 . Missiles Intercepted . | . . . . . . . . . . . . . . . . . . . . . . . . . . . . Alert | -11 -10 -10 -9 -9 -9 -8 -8 -8 -8 -8 -7 -7 -7 -7 -6 -6 -5 -5 -4 -4 -4 -4 -3 -3 -3 -2 -2 ------- Run | Scr Mat Min Mat Min Exi Min Mat Gar Mat Gar Fac Gar Fac Gar Fac Gar Fac Gar Fac Gar Fac Gar Res Qua Gar Res Tes Peak Influence 4323 | 5 329 180 517 184 . . 477 1153 672 976 626 988 661 499 367 269 456 628 378 442 243 692 499 552 1198 2202 4323 Initial 1233 | . 3 85 70 144 . . . 310 561 312 512 438 518 80 261 256 135 235 329 100 226 32 389 100 414 673 1233 Average 465 | 3 158 134 335 94 . . 242 890 572 705 543 807 517 319 295 169 277 463 241 257 106 413 262 161 843 974 2561 Maximum Alert Level 5 | . 1 . 2 . . . 2 4 2 3 2 3 2 2 1 1 2 2 1 2 1 2 2 2 4 5 5 Low Security (%) 26 | 100 59 100 9 100 . 100 34 . . . . . 2 14 . 47 16 . 47 59 70 12 50 77 . . . Level 1 26 | . 40 . 61 . . . 60 4 . 10 . . 10 56 100 52 79 19 52 26 29 29 11 14 . . . Level 2 26 | . . . 29 . . . 4 11 100 26 100 24 86 28 . . 3 80 . 13 . 57 37 8 28 33 . Level 3 16 | . . . . . . . . 72 . 62 . 75 . . . . . . . . . . . . 57 45 . Level 4 2 | . . . . . . . . 11 . . . . . . . . . . . . . . . . 13 14 57 Level 5 . | . . . . . . . . . . . . . . . . . . . . . . . . . . . 42 High Security . | . . . . . . . . . . . . . . . . . . . . . . . . . . 7 . Max Security . | . . . . . . . . . . . . . . . . . . . . . . . . . . . . Squads Dispatched 83 | . 3 . 5 . . . 3 . 2 . 1 . 5 . 1 . 11 . 5 . 4 . 7 11 . 20 5 Investigation 13 | . 2 . 2 . . . 1 . 1 . 1 . . . . . 3 . 1 . . . . . . 1 1 Extermination 19 | . . . . . . . . . . . . . 1 . . . 3 . 3 . 1 . 1 5 . 5 . Reinforcement 28 | . 1 . 3 . . . 1 . 1 . . . 2 . 1 . 2 . 1 . . . 4 5 . 5 2 Assault 11 | . . . . . . . . . . . . . 1 . . . . . . . . . . . . 9 1 Garrison 12 | . . . . . . . 1 . . . . . 1 . . . 3 . . . 3 . 2 1 . . 1 Intercept . | . . . . . . . . . . . . . . . . . . . . . . . . . . . . Construction Impeded 9 | . . . . . . . . . . . . . . . . . 1 . . . . . 2 1 . 4 1 Haulers Reinforced 3 | . . . . . . . . . . . . . 1 . . . 1 . . . . . . . . 1 . Alert ID Control Effect 93 | . . . . . . . . . . . . . . . . 14 13 9 5 12 6 5 10 6 4 9 . Stealth | -11 -10 -10 -9 -9 -9 -8 -8 -8 -8 -8 -7 -7 -7 -7 -6 -6 -5 -5 -4 -4 -4 -4 -3 -3 -3 -2 -2 --------- Run | Scr Mat Min Mat Min Exi Min Mat Gar Mat Gar Fac Gar Fac Gar Fac Gar Fac Gar Fac Gar Fac Gar Res Qua Gar Res Tes Distress Signals 18 | . 1 . 2 . . . 3 . 1 . . . . . . . . . 2 . 1 . 2 . . 3 3 Communications Jammed . | . . . . . . . . . . . . . . . . . . . . . . . . . . . . Distress Signals . | . . . . . . . . . . . . . . . . . . . . . . . . . . . . Times Spotted 783 | . 22 5 36 16 . . 43 19 22 22 . 24 29 23 . 35 48 32 18 31 13 34 54 49 30 151 27 Peak Tracking Total 15 | . 3 3 5 4 . . 7 7 4 6 1 8 5 3 . 5 6 8 4 4 4 5 6 8 4 15 10 Tactical Retreats 44 | . 1 1 . 1 . . 2 1 1 4 . . 1 1 . . 2 3 1 2 . 3 6 2 4 5 3 Traps | -11 -10 -10 -9 -9 -9 -8 -8 -8 -8 -8 -7 -7 -7 -7 -6 -6 -5 -5 -4 -4 -4 -4 -3 -3 -3 -2 -2 ------- Run | Scr Mat Min Mat Min Exi Min Mat Gar Mat Gar Fac Gar Fac Gar Fac Gar Fac Gar Fac Gar Fac Gar Res Qua Gar Res Tes Traps Triggered 94 | . 1 . . . . . 4 10 . 8 . 8 1 6 . 6 1 8 . 11 . 9 3 1 9 7 1 Indirectly 9 | . . . . . . . . . . . . . . . . . . . . . . . 2 . 3 4 . Trap Hack Attempts . | . . . . . . . . . . . . . . . . . . . . . . . . . . . . Triggered . | . . . . . . . . . . . . . . . . . . . . . . . . . . . . Disarmed . | . . . . . . . . . . . . . . . . . . . . . . . . . . . . Reprogrammed . | . . . . . . . . . . . . . . . . . . . . . . . . . . . . Reused . | . . . . . . . . . . . . . . . . . . . . . . . . . . . . Traps Extracted . | . . . . . . . . . . . . . . . . . . . . . . . . . . . . Installed . | . . . . . . . . . . . . . . . . . . . . . . . . . . . . Triggered 4 | . . . . . . . . . . . . . . . . . . 2 . . . . . . . 2 . Machines | -11 -10 -10 -9 -9 -9 -8 -8 -8 -8 -8 -7 -7 -7 -7 -6 -6 -5 -5 -4 -4 -4 -4 -3 -3 -3 -2 -2 ---------- Run | Scr Mat Min Mat Min Exi Min Mat Gar Mat Gar Fac Gar Fac Gar Fac Gar Fac Gar Fac Gar Fac Gar Res Qua Gar Res Tes Machines Disabled 135 | . 1 . 7 . . . 1 6 1 4 . 4 6 4 . 4 12 7 1 6 2 6 7 9 10 5 32 Max in Single Turn 30 | . 1 . 2 . . . 1 1 1 1 . 1 3 1 . 1 2 1 . 1 1 2 3 1 2 1 30 Garrison Access 5 | . . . . . . . . . . . . . . . . . 1 . . . . . 1 . . 2 1 Garrison Relay 36 | . . . . . . . . 4 . 4 . 4 . 4 . 4 . 4 . 4 . 4 . . 4 . . Phase Generator 2 | . . . . . . . . . . . . . . . . . . . . . . 1 . . 1 . . Machines Sabotaged . | . . . . . . . . . . . . . . . . . . . . . . . . . . . . Garrisons Compromised . | . . . . . . . . . . . . . . . . . . . . . . . . . . . . Overloaded Fab Kills . | . . . . . . . . . . . . . . . . . . . . . . . . . . . . Fab Network Shutdowns . | . . . . . . . . . . . . . . . . . . . . . . . . . . . . Hacking | -11 -10 -10 -9 -9 -9 -8 -8 -8 -8 -8 -7 -7 -7 -7 -6 -6 -5 -5 -4 -4 -4 -4 -3 -3 -3 -2 -2 --------- Run | Scr Mat Min Mat Min Exi Min Mat Gar Mat Gar Fac Gar Fac Gar Fac Gar Fac Gar Fac Gar Fac Gar Res Qua Gar Res Tes Machines Accessed 83 | . 7 . 4 . 1 . 8 . 9 . 3 . 6 . 1 . 13 . 3 . 3 . 6 11 . 8 . Terminals 48 | . 4 . 2 . . . 4 . 7 . 1 . 4 . . . 7 . 1 . 1 . 3 9 . 5 . Fabricators 6 | . . . . . . . . . . . . . 1 . . . 2 . 1 . . . 2 . . . . Repair Stations 6 | . 1 . 1 . . . 1 . . . . . . . . . 2 . . . 1 . . . . . . Recycling Units 6 | . 2 . 1 . . . 1 . 1 . 1 . . . . . . . . . . . . . . . . Scanalyzers 4 | . . . . . . . 1 . . . . . . . . . . . . . . . . 1 . 2 . Garrison Access 12 | . . . . . . . 1 . 1 . 1 . 1 . 1 . 2 . 1 . 1 . 1 1 . 1 . Total Hacks 210 | . 18 . 13 . 1 . 25 . 23 . 5 . 17 . 2 . 33 . 8 . 7 . 11 30 . 17 . Successful 119 | . 12 . 12 . 1 . 16 . 11 . 3 . 7 . 2 . 16 . 3 . 5 . 6 15 . 10 . Failed 91 | . 6 . 1 . . . 9 . 12 . 2 . 10 . . . 17 . 5 . 2 . 5 15 . 7 . Catastrophic 25 | . . . . . . . . . 5 . . . 4 . . . 6 . 2 . . . 1 4 . 3 . Database Lockouts . | . . . . . . . . . . . . . . . . . . . . . . . . . . . . Manual 103 | . 11 . 4 . . . 11 . 11 . 2 . 9 . 1 . 15 . 5 . 4 . 2 17 . 11 . Terminals 127 | . 10 . 5 . . . 17 . 21 . 2 . 9 . . . 15 . 3 . 1 . 6 27 . 11 . Fabricators 17 | . . . . . . . . . . . . . 6 . . . 4 . 3 . . . 4 . . . . Repair Stations 21 | . 4 . 7 . . . 2 . . . . . . . . . 5 . . . 3 . . . . . . Recycling Units 8 | . 4 . 1 . . . 1 . 1 . 1 . . . . . . . . . . . . . . . . Scanalyzers 9 | . . . . . . . 4 . . . . . . . . . . . . . . . . 1 . 4 . Garrison Access 27 | . . . . . . . 1 . 1 . 2 . 2 . 2 . 9 . 2 . 3 . 1 2 . 2 . Terminal Hacks 38 | . 2 . 4 . 1 . 6 . 7 . . . 2 . . . 3 . . . . . 2 9 . 2 . Record 1 | . . . . . 1 . . . . . . . . . . . . . . . . . . . . . . Part Schematic 2 | . . . . . . . 1 . . . . . . . . . . . . . . . . 1 . . . Robot Analysis 1 | . . . . . . . . . . . . . . . . . . . . . . . . 1 . . . Prototype ID Bank 4 | . . . 1 . . . 3 . . . . . . . . . . . . . . . . . . . . Open Door 1 | . . . . . . . . . . . . . . . . . . . . . . . . 1 . . . Branch Access Points 5 | . . . 1 . . . 1 . . . . . . . . . 1 . . . . . 1 . . 1 . Terminal Index 3 | . . . . . . . . . . . . . 1 . . . 1 . . . . . . 1 . . . Fabricator Index 1 | . . . . . . . . . . . . . . . . . . . . . . . 1 . . . . Unreport Threat 7 | . . . 1 . . . . . 2 . . . 1 . . . 1 . . . . . . 1 . 1 . Locate Traps 3 | . . . . . . . 1 . 1 . . . . . . . . . . . . . . 1 . . . Maintenance Status 1 | . . . . . . . . . . . . . . . . . . . . . . . . 1 . . . Recall Extermination 1 | . . . . . . . . . . . . . . . . . . . . . . . . 1 . . . Recall Reinforcements 1 | . . . 1 . . . . . . . . . . . . . . . . . . . . . . . . Hauler Manifests 2 | . 1 . . . . . . . 1 . . . . . . . . . . . . . . . . . . Zone Layout 5 | . 1 . . . . . . . 3 . . . . . . . . . . . . . . 1 . . . Fabricator Hacks 9 | . . . . . . . . . . . . . 4 . . . 1 . 1 . . . 3 . . . . Load Schematic 4 | . . . . . . . . . . . . . 1 . . . . . 1 . . . 2 . . . . Build 5 | . . . . . . . . . . . . . 3 . . . 1 . . . . . 1 . . . . Repair Station Hacks 18 | . 4 . 6 . . . 2 . . . . . . . . . 4 . . . 2 . . . . . . Scan Component 9 | . 2 . 3 . . . 1 . . . . . . . . . 2 . . . 1 . . . . . . Repair 9 | . 2 . 3 . . . 1 . . . . . . . . . 2 . . . 1 . . . . . . Recycling Unit Hacks . | . . . . . . . . . . . . . . . . . . . . . . . . . . . . Scanalyzer 6 | . . . . . . . 2 . . . . . . . . . . . . . . . . 1 . 3 . Insert Component 5 | . . . . . . . 1 . . . . . . . . . . . . . . . . 1 . 3 . Analyze 1 | . . . . . . . 1 . . . . . . . . . . . . . . . . . . . . Garrison Access Hacks 12 | . . . . . . . 1 . 1 . 1 . 1 . 1 . 2 . 1 . 1 . 1 1 . 1 . Unlock Access 9 | . . . . . . . 1 . 1 . 1 . 1 . 1 . 1 . 1 . 1 . . 1 . . . Seal Access 3 | . . . . . . . . . . . . . . . . . 1 . . . . . 1 . . 1 . Unauthorized Hacks 36 | . 6 . 2 . . . 5 . 3 . 2 . . . 1 . 6 . 1 . 2 . . 4 . 4 . Terminals 22 | . 4 . 1 . . . 4 . 2 . . . . . . . 3 . 1 . . . . 3 . 4 . Track 14 | . 4 . 1 . . . 3 . 2 . . . . . . . . . . . . . . 2 . 2 . Assimilate 1 | . . . . . . . . . . . . . . . . . . . . . . . . 1 . . . Botnet 5 | . . . . . . . 1 . . . . . . . . . 2 . 1 . . . . . . 1 . Operators 1 | . . . . . . . . . . . . . . . . . . . . . . . . . . 1 . Search 1 | . . . . . . . . . . . . . . . . . 1 . . . . . . . . . . Fabricators 2 | . . . . . . . . . . . . . . . . . 2 . . . . . . . . . . Prioritize 1 | . . . . . . . . . . . . . . . . . 1 . . . . . . . . . . Download 1 | . . . . . . . . . . . . . . . . . 1 . . . . . . . . . . Repair Stations 1 | . . . . . . . . . . . . . . . . . . . . . 1 . . . . . . Mechanics 1 | . . . . . . . . . . . . . . . . . . . . . 1 . . . . . . Recycling Units 6 | . 2 . 1 . . . 1 . 1 . 1 . . . . . . . . . . . . . . . . Tunnel 6 | . 2 . 1 . . . 1 . 1 . 1 . . . . . . . . . . . . . . . . Scanalyzers . | . . . . . . . . . . . . . . . . . . . . . . . . . . . . Garrison Access 5 | . . . . . . . . . . . 1 . . . 1 . 1 . . . 1 . . 1 . . . Reprogram 5 | . . . . . . . . . . . 1 . . . 1 . 1 . . . 1 . . 1 . . . Data Cores Recovered 2 | . . . . . . . . . 1 . . . . . . . . . . . . . 1 . . . . Used 2 | . . . . . . . . . 1 . . . . . . . . . . . . . 1 . . . . Hacking Detections 70 | . 6 . 3 . . . 6 . 7 . 2 . 6 . 1 . 12 . 3 . 2 . 5 10 . 7 . Full Trace Events 2 | . . . . . . . . . . . . . . . . . 1 . 1 . . . . . . . . Feedback Events . | . . . . . . . . . . . . . . . . . . . . . . . . . . . . Feedback Blocked . | . . . . . . . . . . . . . . . . . . . . . . . . . . . . Robot Schematics Acquired . | . . . . . . . . . . . . . . . . . . . . . . . . . . . . Robots Built . | . . . . . . . . . . . . . . . . . . . . . . . . . . . . Matter . | . . . . . . . . . . . . . . . . . . . . . . . . . . . . Time . | . . . . . . . . . . . . . . . . . . . . . . . . . . . . Total Robot Build Rating . | . . . . . . . . . . . . . . . . . . . . . . . . . . . . Part Schematics Acquired 4 | . . . . . . . 2 . . . . . . . . . 1 . . . . . . 1 . . . Parts Built 7 | . . . . . . . . . . . . . 3 . . . 2 . . . . . 2 . . . . Matter 862 | . . . . . . . . . . . . . 306 . . . 278 . . . . . 278 . . . . Time 268 | . . . . . . . . . . . . . 153 . . . 46 . . . . . 69 . . . . Total Part Build Rating 39 | . . . . . . . . . . . . . 3 . . . 18 . . . . . 18 . . . . Parts Repaired 9 | . 2 . 3 . . . 1 . . . . . . . . . 2 . . . 1 . . . . . . Time 290 | . 52 . 84 . . . 32 . . . . . . . . . 66 . . . 56 . . . . . . Parts Recycled . | . . . . . . . . . . . . . . . . . . . . . . . . . . . . Recycled Matter . | . . . . . . . . . . . . . . . . . . . . . . . . . . . . Retrieved Matter . | . . . . . . . . . . . . . . . . . . . . . . . . . . . . Retrieved Components . | . . . . . . . . . . . . . . . . . . . . . . . . . . . . Parts Scanalyzed 1 | . . . . . . . 1 . . . . . . . . . . . . . . . . . . . . Part Schematics Acquired 1 | . . . . . . . 1 . . . . . . . . . . . . . . . . . . . . Parts Damaged . | . . . . . . . . . . . . . . . . . . . . . . . . . . . . Bothacking | -11 -10 -10 -9 -9 -9 -8 -8 -8 -8 -8 -7 -7 -7 -7 -6 -6 -5 -5 -4 -4 -4 -4 -3 -3 -3 -2 -2 ------------ Run | Scr Mat Min Mat Min Exi Min Mat Gar Mat Gar Fac Gar Fac Gar Fac Gar Fac Gar Fac Gar Fac Gar Res Qua Gar Res Tes Used RIF Installer 9 | . . . . . . . . 1 . 1 . 1 . 1 . 1 . 1 . 1 . 1 . . 1 . . Coupler Efficiency 1 | . . . . . . . . . . . . . . . . . . . . . . 1 . . . . . Hotswap 1 | . . . . . . . . . . 1 . . . . . . . . . . . . . . . . . Command Fork 2 | . . . . . . . . . . . . 1 . . . 1 . . . . . . . . . . . Watcher Feeds 1 | . . . . . . . . . . . . . . . . . . 1 . . . . . . . . . Alert ID Control 1 | . . . . . . . . . . . . . . 1 . . . . . . . . . . . . . Program Shield 1 | . . . . . . . . . . . . . . . . . . . . . . . . . 1 . . Autoassimilate 1 | . . . . . . . . . . . . . . . . . . . . 1 . . . . . . . Robots Hacked 146 | . . . . . . . . . . . . 1 16 11 . 17 19 9 9 11 8 10 10 7 7 11 . Non-combat 32 | . . . . . . . . . . . . . 2 . . . 12 . 3 . 2 . 7 2 . 4 . Combat 114 | . . . . . . . . . . . . 1 14 11 . 17 7 9 6 11 6 10 3 5 7 7 . Autoassimilated 4 | . . . . . . . . . . . . . . . . . . . . 1 . 1 . . 1 1 . Robot Hacks Applied 150 | . . . . . . . . . . . . 1 17 11 . 17 21 9 9 10 10 9 13 7 6 10 . parse_system 2 | . . . . . . . . . . . . . . . . . . . . . . . . . 1 1 . drop_inventory 15 | . . . . . . . . . . . . . 1 . . . 6 . 2 . 1 . 2 2 . 1 . find_recycling 1 | . . . . . . . . . . . . . 1 . . . . . . . . . . . . . . ignore_parts 2 | . . . . . . . . . . . . . . . . . . . . . . . . . . 2 . purge_threat 9 | . . . . . . . . . . . . . . . . . 2 . . . 1 . 5 . . 1 . map_route 5 | . . . . . . . . . . . . . . . . . 2 . 1 . . . 2 . . . . locate_prototypes 1 | . . . . . . . . . . . . . . . . . . . . . . . . 1 . . . find_garrison 3 | . . . . . . . . . . . . . 1 . . . 1 . . . 1 . . . . . . focus_fire 1 | . . . . . . . . . . . . . . . . 1 . . . . . . . . . . . spike_heat 4 | . . . . . . . . . . . . . . . . . 3 1 . . . . . . . . . overload_power 2 | . . . . . . . . . . . . . . . . 1 . 1 . . . . . . . . . overwrite_iff 2 | . . . . . . . . . . . . . . . . . . 1 . . . . . 1 . . . streamctrl_high 1 | . . . . . . . . . . . . . . . . . . . . . . 1 . . . . . formatsys_low 4 | . . . . . . . . . . . . . . . . . 3 . . . 1 . . . . . . formatsys_high 98 | . . . . . . . . . . . . 1 14 11 . 15 4 6 6 10 6 8 4 3 5 5 . Relay Couplers Released 141 | . . . . . . . . 16 . 19 . 16 . 15 . 13 . 13 . 15 . 14 1 . 15 1 3 Machine Destruction 141 | . . . . . . . . 16 . 19 . 16 . 15 . 13 . 13 . 15 . 14 1 . 15 1 3 Attached 39 | . . . . . . . . . . . . 1 6 3 . 2 2 2 4 3 2 4 2 . 1 4 3 Robots Rewired 3 | . . . . . . . . . . . . . . . . 3 . . . . . . . . . . . Allies Hacked 10 | . . . . . . . . . . . . . . . . . 3 . 1 1 . . 5 . . . . Hacks Repelled . | . . . . . . . . . . . . . . . . . . . . . . . . . . . . Allies | -11 -10 -10 -9 -9 -9 -8 -8 -8 -8 -8 -7 -7 -7 -7 -6 -6 -5 -5 -4 -4 -4 -4 -3 -3 -3 -2 -2 -------- Run | Scr Mat Min Mat Min Exi Min Mat Gar Mat Gar Fac Gar Fac Gar Fac Gar Fac Gar Fac Gar Fac Gar Res Qua Gar Res Tes Total Allies 148 | . . . . 3 . . . . . . 2 1 17 13 3 19 10 9 6 15 9 13 5 9 7 7 . Largest Group 12 | . . . . 3 1 1 1 . . . 2 2 4 8 11 9 8 5 4 6 10 12 8 6 3 4 . Highest-Rated Group 591 | . . . . 40 16 16 16 . . . 32 32 80 167 254 263 251 102 193 258 479 591 405 214 192 120 . Highest-Rated Ally 115 | . . . . 16 16 16 16 . . . 16 32 32 32 32 47 54 49 56 56 58 115 64 56 64 64 . Total Orders 18 | . . . . . . . . . . . . . . 2 . 2 7 . . . 2 4 . . 1 . . STAY 6 | . . . . . . . . . . . . . . 1 . 1 1 . . . 1 2 . . . . . ROAM 1 | . . . . . . . . . . . . . . . . . . . . . . . . . 1 . . FOLLOW 5 | . . . . . . . . . . . . . . 1 . 1 . . . . 1 2 . . . . . AID 4 | . . . . . . . . . . . . . . . . . 4 . . . . . . . . . . PICKUP 1 | . . . . . . . . . . . . . . . . . 1 . . . . . . . . . . COLLECT 1 | . . . . . . . . . . . . . . . . . 1 . . . . . . . . . . Ally Attacks 946 | . . . . 53 . . 11 . . . . 7 56 51 2 113 97 60 15 94 44 116 76 53 24 74 . Total Damage 22546 | . . . . 516 . . 88 . . . . 98 645 836 13 2195 3124 901 522 2780 1291 3932 2300 997 977 1331 . Kills 175 | . . . . 11 . . 2 . . . . 1 3 10 . 19 35 10 6 14 7 20 14 9 5 9 . Allies Corrupted 8 | . . . . . . . . . . . . 1 2 . . . 2 . . . . . . 2 1 . . Allies Melted . | . . . . . . . . . . . . . . . . . . . . . . . . . . . . Intel | -11 -10 -10 -9 -9 -9 -8 -8 -8 -8 -8 -7 -7 -7 -7 -6 -6 -5 -5 -4 -4 -4 -4 -3 -3 -3 -2 -2 ------- Run | Scr Mat Min Mat Min Exi Min Mat Gar Mat Gar Fac Gar Fac Gar Fac Gar Fac Gar Fac Gar Fac Gar Res Qua Gar Res Tes Robot Analysis Total 1 | . . . . . . . . . . . . . . . . . . . . . . . . 1 . . . Derelict Logs Recovered 2 | . . 1 . 1 . . . . . . . . . . . . . . . . . . . . . . . Drone Launches . | . . . . . . . . . . . . . . . . . . . . . . . . . . . . Drone Recoveries . | . . . . . . . . . . . . . . . . . . . . . . . . . . . . Exploration | -11 -10 -10 -9 -9 -9 -8 -8 -8 -8 -8 -7 -7 -7 -7 -6 -6 -5 -5 -4 -4 -4 -4 -3 -3 -3 -2 -2 ------------- Run | Scr Mat Min Mat Min Exi Min Mat Gar Mat Gar Fac Gar Fac Gar Fac Gar Fac Gar Fac Gar Fac Gar Res Qua Gar Res Tes Turns Passed 36438 | 52 845 245 1483 707 1040 33 1716 1879 1042 1233 246 1856 1302 2175 140 1587 2207 1281 927 3391 690 1981 1051 2264 2110 2721 234 Spaces Moved 14729 | 25 361 127 605 353 574 19 616 700 421 455 96 688 439 868 76 806 1084 577 405 937 300 932 390 903 980 876 116 Core 62 | . . . . . . . . . . . . . . . . . . . . . . . . . . . 62 Treads 12205 | . 324 127 605 353 574 19 616 682 178 455 96 659 439 778 . . . 523 405 937 300 932 390 903 980 876 54 Legs 62 | 25 37 . . . . . . . . . . . . . . . . . . . . . . . . . . Wheels 2400 | . . . . . . . . 18 243 . . 29 . 90 76 806 1084 54 . . . . . . . . . Hover . | . . . . . . . . . . . . . . . . . . . . . . . . . . . . Flight . | . . . . . . . . . . . . . . . . . . . . . . . . . . . . Fastest Speed 50 | 120 120 160 160 180 180 180 212 160 160 240 240 220 240 170 170 170 170 180 185 185 185 185 185 185 185 185 50 Average Speed 197 | 120 160 166 178 180 180 180 216 241 193 240 240 239 240 232 170 170 170 187 186 185 185 185 188 198 194 202 111 Slowest Speed 320 | 120 180 180 180 180 180 180 310 245 240 240 240 320 240 240 170 170 180 205 205 185 185 205 205 205 205 205 200 Overloaded Moves . | . . . . . . . . . . . . . . . . . . . . . . . . . . . . Propulsion Burnouts . | . . . . . . . . . . . . . . . . . . . . . . . . . . . . Robots Hopped . | . . . . . . . . . . . . . . . . . . . . . . . . . . . . Cave-ins Triggered . | . . . . . . . . . . . . . . . . . . . . . . . . . . . . Teleports 1 | . . . . . . . . . . . . . . . . . . . . . . . . . . 1 . Exploration Rate (%) 51 | 3 69 36 50 85 83 13 56 79 43 78 3 89 13 84 3 80 34 84 13 89 10 96 17 84 86 31 26 Regions Visited 27 Branch Regions 6 Pre-discovered Areas 9 | . 2 1 1 1 1 . 1 . 1 . 1 . . . . . . . . . . . . . . . . Known Exits Taken 12 | . . . 1 . . . 1 . 1 . 1 . 1 . 1 . 1 . 1 . 1 . 1 1 . 1 . Unknown Exits Taken 6 | 1 1 1 . 1 1 1 . . . . . . . . . . . . . . . . . . . . . Scrap Searched 1 | . . . . 1 . . . . . . . . . . . . . . . . . . . . . . . Spaces Dug 211 | . . . . 37 . . 13 10 2 12 . 18 30 3 . 25 19 . 1 . 2 8 1 15 . 15 . Terrain Destroyed 2588 | . 22 . 55 119 . . 47 59 18 81 . 85 45 27 . 25 57 3 1 1 2 60 5 16 74 79 1707 Melee 44 | . . . . . . . . . 2 . . . 2 . . . 6 . 1 . 2 8 1 12 . 10 . Projectile 47 | . . . . . . . . . . . . . . . . . 1 3 . 1 . . 2 4 . 35 1 AOE 2497 | . 22 . 55 119 . . 47 59 16 81 . 85 43 27 . 25 50 . . . . 52 2 . 74 34 1706 Terrain Rammed . | . . . . . . . . . . . . . . . . . . . . . . . . . . . . Walls Destroyed . | . . . . . . . . . . . . . . . . . . . . . . . . . . . . Machines Disabled . | . . . . . . . . . . . . . . . . . . . . . . . . . . . . Actions | -11 -10 -10 -9 -9 -9 -8 -8 -8 -8 -8 -7 -7 -7 -7 -6 -6 -5 -5 -4 -4 -4 -4 -3 -3 -3 -2 -2 --------- Run | Scr Mat Min Mat Min Exi Min Mat Gar Mat Gar Fac Gar Fac Gar Fac Gar Fac Gar Fac Gar Fac Gar Res Qua Gar Res Tes Total 20257 | 32 524 142 876 391 585 18 851 829 565 552 112 838 635 994 86 979 1358 732 517 2540 417 1086 569 1207 1145 1472 205 Wait 2452 | . 86 4 132 4 . . 57 6 32 2 15 29 100 24 6 9 80 28 15 1477 71 34 20 29 42 134 16 Move 14705 | 24 360 126 604 352 573 18 616 699 421 454 95 687 438 867 75 805 1083 576 405 936 299 931 389 902 979 875 116 Hop . | . . . . . . . . . . . . . . . . . . . . . . . . . . . . Pick Up 343 | . 10 1 21 4 6 . 27 16 9 8 . 17 8 25 1 16 33 20 8 14 5 11 9 22 9 37 6 Fast Attach 90 | 1 5 . 8 . . . 15 3 3 1 . 4 5 . . . 1 . 6 4 1 1 3 12 2 11 4 Attach 169 | . 2 1 5 2 . . 11 5 2 2 1 16 2 3 2 1 6 6 4 2 1 2 10 13 9 38 23 Detach 47 | . . . . . . . 4 . . . . . . . . . . 2 4 . . . 3 6 3 21 4 Swap 432 | . 5 . 11 1 2 . 17 19 22 10 1 15 14 8 2 18 40 12 20 14 9 8 28 70 18 66 2 Drop 240 | . 5 . 21 2 4 . 12 9 11 7 . 1 7 12 . 10 25 15 8 11 3 6 5 30 4 22 10 Fire 1412 | 7 51 10 71 26 . . 90 49 63 52 . 48 45 40 . 64 80 55 46 61 24 33 94 93 67 220 23 Melee 164 | . . . . . . . . 3 2 . . 2 14 3 . . 10 4 1 1 4 42 6 28 . 44 . Ram 3 | . . . . . . . . . . . . 2 . . . . . . . . . . . 1 . . . Kick . | . . . . . . . . . . . . . . . . . . . . . . . . . . . . Crush 16 | . . . 3 . . . 2 . . . . 1 2 . . . . . . . . . 2 1 . 4 1 Escape Stasis 184 | . . . . . . . . 20 . 16 . 16 . 12 . 56 . 14 . 20 . 18 . . 12 . . Rewire . | . . . . . . . . . . . . . . . . . . . . . . . . . . . . Trap . | . . . . . . . . . . . . . . . . . . . . . . . . . . . . Miscellaneous . | . . . . . . . . . . . . . . . . . . . . . . . . . . . . Route ------- -11/Scrapyard -10/Materials (discovered 2 exits: *Mat / [*Min]) -10/Mines -9/Materials -9/Mines (discovered 4 exits: *Mat x2 / *Exi / [*Zio]) -9/Exiles -8/Mines -8/Materials (discovered 3 exits: *Fac x2 / Gar) -8/Garrison (discovered 3 exits: *Mat x3) -8/Materials (discovered 2 exits: *Fac / Gar) -8/Garrison (discovered 3 exits: *Fac x3) -7/Factory -7/Garrison (discovered 3 exits: *Fac x3) -7/Factory -7/Garrison (discovered 3 exits: *Fac x3) -6/Factory -6/Garrison (discovered 3 exits: *Fac x3) -5/Factory (discovered 4 exits: *Fac / *Upp x2 / Gar) -5/Garrison (discovered 3 exits: *Fac x3) -4/Factory (discovered 2 exits: *Res / Gar) -4/Garrison (discovered 3 exits: *Fac x3) -4/Factory (discovered 2 exits: Res / Gar) -4/Garrison (discovered 3 exits: *Res x3) -3/Research (discovered 3 exits: Arm / *Qua x2) -3/Quarantine (discovered 2 exits: *Res / Gar) -3/Garrison (discovered 3 exits: *Res x3) -2/Research (discovered 3 exits: [Acc] / *Tes x2) -2/Testing (discovered 1 exit: [*Acc]) History --------- Turn | Location | Event 20 | -11/Scrapyard | Discovered new exit (range 2) 53 | -11/Scrapyard | Entered Materials 301 | -10/Materials | Build established: Mutant 330 | -10/Materials | Discovered new exit (range 16) 515 | -10/Materials | Repaired Lgt. Treads 543 | -10/Materials | Repaired Lgt. Treads 830 | -10/Materials | Discovered new exit (range 7) 898 | -10/Materials | Entered Mines 977 | -10/Mines | Core integrity fell below 50% 1116 | -10/Mines | Discovered new exit (range 10) 1127 | -10/Mines | Learned location of Mines (-8) 1143 | -10/Mines | Entered Materials 1143 | -9/Materials | Evolved 2 slots: Utility x2 1567 | -9/Materials | Destroyed 8 combat bots 1836 | -9/Materials | Core integrity fell below 50% 1972 | -9/Materials | Repaired Hvy. Assault Rifle 1999 | -9/Materials | Repaired Lgt. Treads 2020 | -9/Materials | Build established: Scavenger-Mutant 2027 | -9/Materials | Repaired Lgt. Assault Rifle 2220 | -9/Materials | Identified exit to Mines 2626 | -9/Materials | Entered Mines 2632 | -9/Mines | Build established: Mutant 2661 | -9/Mines | Found a damaged Exp. Sensor Array with a note attached 2665 | -9/Mines | Found Prototype Device 2749 | -9/Mines | Received a Rocket Launcher from a helpful Derelict 2780 | -9/Mines | Assembled infested the area 2781 | -9/Mines | Discovered new exit (range 10) 2785 | -9/Mines | Assisted by a Guerilla fighting off Assembled 2835 | -9/Mines | Assisted by bots powering up and referring to "LRC-V3" 2922 | -9/Mines | Discovered new exit (range 11) 2923 | -9/Mines | A Derelict revealed a hidden shortcut to a safe place 3030 | -9/Mines | Learned Materials stockpile data 3144 | -9/Mines | Learned location of Storage (-7) 3325 | -9/Mines | Deemed a non-threat by the Exiles lab entrance 3325 | -9/Mines | Discovered new exit (range 5) 3333 | -9/Mines | Entered Exiles 3333 | -9/Exiles | Accompanied by 1 ally 3377 | -9/Exiles | Met 8R-AWN 3407 | -9/Exiles | Met EX-HEX 3474 | -9/Exiles | Met EX-DEC 3589 | -9/Exiles | Learned location of Zion (-7) 3819 | -9/Exiles | Build established: Hauler-Mutant 3853 | -9/Exiles | Met EX-BIN 3959 | -9/Exiles | Discovered new exit (range 14) 4108 | -9/Exiles | Visited The Gauntlet 4373 | -9/Exiles | Entered Mines 4373 | -8/Mines | Accompanied by 1 ally 4373 | -8/Mines | Discovered new exit (range 14) 4406 | -8/Mines | Entered Materials 4406 | -8/Materials | Accompanied by 1 ally 4406 | -8/Materials | Evolved 2 slots: Utility x2 4949 | -8/Materials | Repaired Hrd. Light Armor Plating 5118 | -8/Materials | Discovered new exit (range 6) 5868 | -8/Materials | Discovered new exit (range 9) 6071 | -8/Materials | Garrison activated, responded to threat 6122 | -8/Materials | Identified exit to Garrison 6122 | -8/Materials | Entered Garrison 6164 | -8/Garrison | Triggered checkpoint 6206 | -8/Garrison | Garrison Relay disabled 6446 | -8/Garrison | Triggered checkpoint 6469 | -8/Garrison | Destroyed 10 combat bots 6500 | -8/Garrison | Triggered checkpoint 6584 | -8/Garrison | Discovered new exit (range 9) 6778 | -8/Garrison | Discovered new exit (range 12) 6822 | -8/Garrison | Installed Relay Interface Framework 7081 | -8/Garrison | Triggered checkpoint 7169 | -8/Garrison | Garrison Relay disabled 7456 | -8/Garrison | Triggered checkpoint 7498 | -8/Garrison | Garrison Relay disabled 7554 | -8/Garrison | Discovered new exit (range 14) 7738 | -8/Garrison | Triggered checkpoint 7780 | -8/Garrison | Garrison Relay disabled 7818 | -8/Garrison | Triggered checkpoint 8001 | -8/Garrison | Entered Materials 8306 | -8/Materials | Build established: Bothacker-Mutant 8620 | -8/Materials | Discovered new exit (range 11) 9043 | -8/Materials | Identified exit to Garrison 9043 | -8/Materials | Entered Garrison 9055 | -8/Garrison | Expanded RIF knowledge: Hotswap 9157 | -8/Garrison | Triggered checkpoint 9228 | -8/Garrison | Garrison Relay disabled 9382 | -8/Garrison | Triggered checkpoint 9389 | -8/Garrison | Core integrity fell below 50% 9463 | -8/Garrison | Discovered new exit (range 10) 9502 | -8/Garrison | Triggered checkpoint 9552 | -8/Garrison | Garrison Relay disabled 9781 | -8/Garrison | Discovered new exit (range 11) 9838 | -8/Garrison | Triggered checkpoint 9906 | -8/Garrison | Garrison Relay disabled 10124 | -8/Garrison | Triggered checkpoint 10167 | -8/Garrison | Garrison Relay disabled 10252 | -8/Garrison | Discovered new exit (range 10) 10276 | -8/Garrison | Entered Factory 10276 | -7/Factory | Evolved 2 slots: Power x1, Utility x1 10411 | -7/Factory | Identified exit to Garrison 10522 | -7/Factory | Entered Garrison 10522 | -7/Garrison | Accompanied by 2 allies 10556 | -7/Garrison | Triggered checkpoint 10629 | -7/Garrison | Garrison Relay disabled 10731 | -7/Garrison | Triggered checkpoint 10778 | -7/Garrison | Lost 5 parts (1p1n1u2w) 10786 | -7/Garrison | Destroyed 9 combat bots 10866 | -7/Garrison | Discovered new exit (range 13) 10978 | -7/Garrison | Triggered checkpoint 11032 | -7/Garrison | Triggered checkpoint 11178 | -7/Garrison | Lost 7 parts (1p2n3u1w) 11207 | -7/Garrison | Core integrity fell below 50% 11275 | -7/Garrison | Lost 4 parts (2n2u) 11332 | -7/Garrison | Lost 3 parts (1p2n) 11494 | -7/Garrison | Triggered checkpoint 11522 | -7/Garrison | Discovered new exit (range 14) 11629 | -7/Garrison | Garrison Relay disabled 11843 | -7/Garrison | Discovered new exit (range 9) 11874 | -7/Garrison | Expanded RIF knowledge: Command Fork 11916 | -7/Garrison | Triggered checkpoint 11961 | -7/Garrison | Garrison Relay disabled 12227 | -7/Garrison | Triggered checkpoint 12262 | -7/Garrison | Garrison Relay disabled 12378 | -7/Garrison | Entered Factory 12778 | -7/Factory | First assault squad dispatched 13120 | -7/Factory | Fabricated Hcp. Storage Unit (x1) 13173 | -7/Factory | Fabricated Hcp. Storage Unit (x1) 13273 | -7/Factory | Fabricated Hcp. Storage Unit (x1) 13347 | -7/Factory | Core integrity fell below 20% 13649 | -7/Factory | Identified exit to Garrison 13680 | -7/Factory | Entered Garrison 13680 | -7/Garrison | Accompanied by 4 allies 13734 | -7/Garrison | Triggered checkpoint 13788 | -7/Garrison | Garrison Relay disabled 13898 | -7/Garrison | Triggered checkpoint 13934 | -7/Garrison | Triggered checkpoint 13998 | -7/Garrison | Triggered checkpoint 14244 | -7/Garrison | Discovered new exit (range 14) 14350 | -7/Garrison | Triggered checkpoint 14433 | -7/Garrison | Garrison Relay disabled 14584 | -7/Garrison | Triggered checkpoint 14692 | -7/Garrison | Discovered new exit (range 14) 14740 | -7/Garrison | Expanded RIF knowledge: Alert ID Control 15039 | -7/Garrison | Build established: Botlord-Mutant 15101 | -7/Garrison | Discovered new exit (range 10) 15188 | -7/Garrison | Triggered checkpoint 15228 | -7/Garrison | Garrison Relay disabled 15452 | -7/Garrison | Triggered checkpoint 15490 | -7/Garrison | Garrison Relay disabled 15855 | -7/Garrison | Entered Factory 15855 | -6/Factory | Accompanied by 8 allies 15855 | -6/Factory | Evolved 2 slots: Utility x2 15856 | -6/Factory | Identified Exp. Sensor Array 15901 | -6/Factory | Identified exit to Garrison 15995 | -6/Factory | Entered Garrison 15995 | -6/Garrison | Accompanied by 9 allies 16084 | -6/Garrison | Triggered checkpoint 16111 | -6/Garrison | Triggered checkpoint 16241 | -6/Garrison | Discovered new exit (range 12) 16264 | -6/Garrison | Spotted B-75 Beast 16288 | -6/Garrison | Allies destroyed B-75 Beast 16308 | -6/Garrison | Triggered checkpoint 16360 | -6/Garrison | Garrison Relay disabled 16391 | -6/Garrison | Found Quantum Capacitor 16502 | -6/Garrison | Triggered checkpoint 16542 | -6/Garrison | Triggered checkpoint 16599 | -6/Garrison | Discovered new exit (range 8) 16725 | -6/Garrison | Discovered new exit (range 11) 16745 | -6/Garrison | Identified exit to Factory 16757 | -6/Garrison | Expanded RIF knowledge: Command Fork 16800 | -6/Garrison | Triggered checkpoint 16847 | -6/Garrison | Garrison Relay disabled 16989 | -6/Garrison | Triggered checkpoint 17021 | -6/Garrison | Garrison Relay disabled 17209 | -6/Garrison | Triggered checkpoint 17251 | -6/Garrison | Garrison Relay disabled 17582 | -6/Garrison | Entered Factory 17582 | -5/Factory | Accompanied by 6 allies 17582 | -5/Factory | Evolved 2 slots: Utility x2 18047 | -5/Factory | Repaired Imp. Light Armor Plating 18068 | -5/Factory | Discovered new exit (range 8) 18082 | -5/Factory | Identified exit to Factory 18313 | -5/Factory | Found Tesla Bomb Launcher 18343 | -5/Factory | Found Tesla Bomb Launcher 18348 | -5/Factory | Found Tesla Bomb Launcher 18528 | -5/Factory | Found Hvy. Reflective Plating 18535 | -5/Factory | Found Hvy. Reflective Plating 18564 | -5/Factory | Found Hvy. Reflective Plating 18611 | -5/Factory | Discovered new exit (range 14) 18635 | -5/Factory | Found Imp. Powered Armor 18638 | -5/Factory | Found Imp. Powered Armor 18641 | -5/Factory | Found Imp. Powered Armor 18644 | -5/Factory | Found Imp. Powered Armor 18708 | -5/Factory | P-70 Sage assimilated allied Sentinel 6c 18783 | -5/Factory | Identified exit to Upper Caves 19446 | -5/Factory | Fabricated Biometal Heavy Treads (x2) 19469 | -5/Factory | Garrison activated, responded to threat 19537 | -5/Factory | Repaired Imp. Remote Datajack 19771 | -5/Factory | Identified exit to Garrison 19789 | -5/Factory | Entered Garrison 19854 | -5/Garrison | Triggered checkpoint 19863 | -5/Garrison | Spotted B-75 Beast 19921 | -5/Garrison | Destroyed B-75 Beast 19983 | -5/Garrison | Triggered checkpoint 20014 | -5/Garrison | Garrison Relay disabled 20134 | -5/Garrison | Triggered checkpoint 20179 | -5/Garrison | Triggered checkpoint 20190 | -5/Garrison | Triggered checkpoint 20268 | -5/Garrison | Triggered checkpoint 20306 | -5/Garrison | Garrison Relay disabled 20444 | -5/Garrison | Discovered exit to Factory (range 10) 20645 | -5/Garrison | Discovered exit to Factory (range 13) 20684 | -5/Garrison | Expanded RIF knowledge: Patrol Navigation 20756 | -5/Garrison | Triggered checkpoint 20790 | -5/Garrison | Garrison Relay disabled 20951 | -5/Garrison | Triggered checkpoint 20982 | -5/Garrison | Garrison Relay disabled 21042 | -5/Garrison | Discovered exit to Factory (range 14) 21070 | -5/Garrison | Entered Factory 21070 | -4/Factory | Accompanied by 1 ally 21070 | -4/Factory | Evolved 2 slots: Utility x2 21319 | -4/Factory | Discovered new exit (range 16) 21479 | -4/Factory | Identified exit to Research 21526 | -4/Factory | Found Prototype Device 21526 | -4/Factory | Identified Exp. Terrain Scanner 21623 | -4/Factory | P-70 Sage assimilated allied Sentinel 7a 21941 | -4/Factory | System corruption reached 10% 21997 | -4/Factory | Identified exit to Garrison 21997 | -4/Factory | Entered Garrison 21997 | -4/Garrison | Accompanied by 1 ally 22042 | -4/Garrison | Triggered checkpoint 22081 | -4/Garrison | Garrison Relay disabled 22972 | -4/Garrison | P-70 Sage assimilated allied Warrior 7a 23654 | -4/Garrison | Triggered checkpoint 23803 | -4/Garrison | Triggered checkpoint 23926 | -4/Garrison | Triggered checkpoint 23950 | -4/Garrison | Discovered new exit (range 10) 24018 | -4/Garrison | Triggered checkpoint 24042 | -4/Garrison | Garrison Relay disabled 24354 | -4/Garrison | Discovered new exit (range 9) 24547 | -4/Garrison | Discovered new exit (range 12) 24565 | -4/Garrison | Identified exit to Factory 24576 | -4/Garrison | Expanded RIF knowledge: Autoassimilate 24634 | -4/Garrison | Triggered checkpoint 24671 | -4/Garrison | Garrison Relay disabled 24886 | -4/Garrison | Triggered checkpoint 24915 | -4/Garrison | Garrison Relay disabled 24992 | -4/Garrison | Triggered checkpoint 25388 | -4/Garrison | Entered Factory 25388 | -4/Factory | Accompanied by 5 allies 25580 | -4/Factory | Discovered exit to Research (range 27) 25744 | -4/Factory | Repaired Imp. Powered Armor 25890 | -4/Factory | Garrison activated, responded to threat 25944 | -4/Factory | Identified exit to Garrison 26078 | -4/Factory | Entered Garrison 26078 | -4/Garrison | Accompanied by 8 allies 26112 | -4/Garrison | Triggered checkpoint 26191 | -4/Garrison | Garrison Relay disabled 26261 | -4/Garrison | Spotted B-86 Titan 26272 | -4/Garrison | Triggered checkpoint 26275 | -4/Garrison | Assimilated Titan 7a with formatsys_high 26283 | -4/Garrison | Triggered checkpoint 26310 | -4/Garrison | Triggered checkpoint 26344 | -4/Garrison | Triggered checkpoint 26447 | -4/Garrison | Discovered exit to Research (range 12) 26460 | -4/Garrison | Triggered checkpoint 26648 | -4/Garrison | Garrison Relay disabled 26848 | -4/Garrison | Triggered checkpoint 26925 | -4/Garrison | Garrison Relay disabled 26985 | -4/Garrison | Discovered exit to Research (range 9) 27328 | -4/Garrison | Garrison Relay disabled 27342 | -4/Garrison | Triggered checkpoint 27420 | -4/Garrison | Destroyed Titan 7a 27499 | -4/Garrison | Discovered exit to Research (range 15) 27540 | -4/Garrison | Expanded RIF knowledge: Coupler Efficiency 27847 | -4/Garrison | Build established: Botlord-Assassin 27946 | -4/Garrison | Phase Generator disabled 28059 | -4/Garrison | Entered Research 28059 | -3/Research | Accompanied by 6 allies 28059 | -3/Research | Evolved 2 slots: Utility x2 28127 | -3/Research | Identified exit to Armory 28127 | -3/Research | Identified exit to Quarantine 28415 | -3/Research | Build established: Botlord-Mutant 28607 | -3/Research | Fabricated Biometal Heavy Treads? 28797 | -3/Research | Garrison activated, responded to threat 28820 | -3/Research | Spotted B-86 Titan 28841 | -3/Research | Destroyed B-86 Titan 28862 | -3/Research | Destroyed 7 combat bots 29110 | -3/Research | Entered Quarantine 29130 | -3/Quarantine | Found Alien Impact Weapon 29314 | -3/Quarantine | Found Alien Artifact 29369 | -3/Quarantine | Identified Core Reset Matrix 29401 | -3/Quarantine | Found Alien Artifact 29409 | -3/Quarantine | Build established: Botlord-Assassin 29429 | -3/Quarantine | Identified Hpw. Transdimensional Reconstructor 29445 | -3/Quarantine | Found Dimensional Node Initializer 29445 | -3/Quarantine | Initialized slip node 29458 | -3/Quarantine | Found Dimensional Node Initializer 29547 | -3/Quarantine | Spotted Alpha 7 29592 | -3/Quarantine | Destroyed Alpha 7 29622 | -3/Quarantine | Found Prototype Processor 29623 | -3/Quarantine | Identified Exp. Targeting Computer 29635 | -3/Quarantine | Found Prototype Ballistic Gun 29636 | -3/Quarantine | Identified Multirail 29669 | -3/Quarantine | Found Sigix Terminator 29820 | -3/Quarantine | Found Phase Armor 29890 | -3/Quarantine | System corruption reached 10% 29916 | -3/Quarantine | Discovered new exit (range 20) 30008 | -3/Quarantine | Found Matter Drive 30211 | -3/Quarantine | Identified exit to Research 30508 | -3/Quarantine | Identified exit to Garrison 30557 | -3/Quarantine | Found Subatomic Replicator 30593 | -3/Quarantine | Garrison activated, responded to threat 30666 | -3/Quarantine | Build established: Botlord-Mutant 30713 | -3/Quarantine | Scanned by Researcher 30823 | -3/Quarantine | Found Sigix Broadsword 31149 | -3/Quarantine | Found Core Cannon 31244 | -3/Quarantine | Core integrity fell below 50% 31374 | -3/Quarantine | Entered Garrison 31448 | -3/Garrison | Triggered checkpoint 31480 | -3/Garrison | Garrison Relay disabled 31586 | -3/Garrison | Triggered checkpoint 31626 | -3/Garrison | Spotted B-86 Titan 31843 | -3/Garrison | Destroyed B-86 Titan 31944 | -3/Garrison | Triggered checkpoint 31954 | -3/Garrison | Triggered checkpoint 32013 | -3/Garrison | Triggered checkpoint 32090 | -3/Garrison | Discovered exit to Research (range 10) 32136 | -3/Garrison | Triggered checkpoint 32164 | -3/Garrison | Garrison Relay disabled 32406 | -3/Garrison | Discovered exit to Research (range 9) 32438 | -3/Garrison | Expanded RIF knowledge: Program Shield 32670 | -3/Garrison | Triggered checkpoint 32836 | -3/Garrison | Discovered exit to Research (range 30) 32956 | -3/Garrison | Triggered checkpoint 33012 | -3/Garrison | Garrison Relay disabled 33197 | -3/Garrison | Phase Generator disabled 33484 | -3/Garrison | Entered Research 33484 | -2/Research | Evolved 2 slots: Weapon x2 33876 | -2/Research | Found Prototype Device 33953 | -2/Research | Identified EM Disruption Field 34126 | -2/Research | Identified exit to Testing 34218 | -2/Research | Found Exp. Targeting Computer 34558 | -2/Research | Destroyed 9 combat bots 34663 | -2/Research | Lost 4 parts (1n2u1w) 34769 | -2/Research | First assault squad dispatched 34843 | -2/Research | Lost 3 parts (1p2u) 34919 | -2/Research | Warped through subspace 34945 | -2/Research | Lost 5 parts (1p3u1w) 35480 | -2/Research | Identified Core Stripper 35587 | -2/Research | Discovered new exit (range 30) 36013 | -2/Research | High security lockdown imminent 36013 | -2/Research | System corruption reached 10% 36047 | -2/Research | Lost 3 parts (1p2u) 36088 | -2/Research | Destroyed 20 combat bots 36093 | -2/Research | High security lockdown engaged 36095 | -2/Research | Core integrity fell below 50% 36205 | -2/Research | Entered Testing 36282 | -2/Testing | Garrison activated, responded to threat 36328 | -2/Testing | Used Subatomic Replicator to create Alien Launcher 36339 | -2/Testing | Identified Supercharged Sigix Terminator 36340 | -2/Testing | Fired Supercharged Sigix Terminator 36361 | -2/Testing | Destroyed 8 combat bots 36371 | -2/Testing | Lost 24 parts (4p1n14u5w) 36409 | -2/Testing | Core integrity fell below 20% 36420 | -2/Testing | Spotted PX-P4QHRIFJSG 36439 | -2/Testing | Discovered new exit (range 8) 36439 | -2/Testing | Destroyed by G-73 Enforcer with Phase Gun Last Messages --------------- 36406_ Dropped Lyr. Medium Armor Plating. 36406_ U-05 Engineer lays Concrete. 36407_ Dropped Hdn. Centrium Heavy Treads. 36407_ U-05 Engineer builds a Wall. 36407_ Dropped Lgt. Particle Reactor. 36407_ U-05 Engineer lays Concrete. 36407_ U-05 Engineer builds a Wall. 36409_ K-01 Serf collects debris. 36412_ The unstable cave ceiling collapses. 36412_ K-01 Serf collects debris. 36412_ U-05 Engineer lays Concrete. 36418_ W-44 Eye sends out distress signal. 36428_ Knocked back. 36435_ C0:FTMQ AHG1QQCUE2GDMQTY&AK2UKDW&X 36435_ O-24 Administrator: "IFF HANDSHAKE FAILED. SECURING TERMINAL." 36439_ O-24 Administrator uses terminal to summon reinforcements. 36439_ ALERT: Hostiles spotted, dispatching reinforcements to Terminal T007. 36439_ O-24 Administrator locks terminal. 36439_ EXIT=FOUND Map ----- +----------------------------------------------------+ | ""???????????????????????????????????????????????? | | ???????????????????????????????????????????????? | | ????????????????????????????????????????????????? | | ????????????????????????????????????????????????? | | ?????????????????????????????????????????????????? | | ?????????????????????????????????????????????????? | | ?????????????????????????????????????????????????? | | ?????????????????????????????????????????????????? | | ?????????????????????????????????????????????????? | | ?????????????????????????????????????????????????? | | ?????????????????????????????????????????????????? | | ?????????????????????????????????????????????????? | | ?????????????????????????????????????????????????? | | ????#?????????????????????? #??????????????????? | | ??? #????????????????????? #??????????????????? | | ?? #????????????????????? ????????????????? | | ? ??????????????????????? ????????????????? | | +######################### ?????????????????? | | c ??????????????????? | | ####???????????????? | | "#############+#### !! """ """#???????????????? | | ####???????#! *# !! """ oT"#???????????????? | | """#???????# # !] """ """????????????????? | | ""#???????#""" + #??????????????????? | | "#???????#""" # #??????????????????? | | ""#???????#""" !# @ #??????????????????? | | ""#???????# # ### #??????????????????? | | """#???????######## #?? #??????????????????? | | ####??????????????# #??? #??????????????????? | | ??????????????????# #??? g ?????????????????? | | ??????????????????# #???? gg ????????????????? | | ??????????????????# #???? g #???????????????? | | ??????????????????# #????? #???????????????? | | ??????????????????# #?????+####???????????????? | | ??????????????????# #?????????????????????????? | | ??????????????????# #?????????????????????????? | | ??????????????????+ ?????????????????????????? | | ??????????????????# #?????????????????????????? | | ??????????????????# #?????????????????????????? | | ??????????????????+ #?????????????????????????? | | ??????????????????##+##??????????????????????????? | | ?????????????????????????????????????????????????? | | ?????????????????????????????????????????????????? | | ?????????????????????????????????????????????????? | | ?????????????????????????????????????????????????? | | ?????????????????????????????????????????????????? | | ?????????????????????????????????????????????????? | | ?????????????????????????????????????????????????? | | ?????????????????????????????????????????????????? | | ?????????????????????????????????????????????????? | +----------------------------------------------------+ Best States ------------- Heat Dissipation 115 Coolant Potential 80 Energy Generation 45 Energy Capacity 1365 Matter Stores 550 Matter Capacity 550 Sight Range 16 Robot Scan Range 30 Terrain Scan Range 30 Terrain Scan Density 210 EM Shielding 4 Armor Coverage 1200 Resistance: EM 50 Propulsion Shielding 66 Weapon Cycling 30 Phase Shifting 15 Evasion (%) 55 Targeting Accuracy 24 Armor Integrity Analysis 66 Recoil Reduction 2 Matter Filtering 50 Energy Filtering 30 Offensive Hacking 10 Defensive Hacking 14 Relay Coupler Types 118 Relay Coupler Value 5 Item Schematics ----------------- Cmb. Airjet | -8/Materials | Scanalyzed Hcp. Storage Unit | -8/Materials | Hacked Biometal Heavy Treads | -5/Factory | Downloaded Adv. Heavy Siege Treads | -3/Quarantine | Hacked Robot Schematics ------------------ None Fabricated ------------ Hcp. Storage Unit | x1 | -7/Factory Hcp. Storage Unit | x1 | -7/Factory Hcp. Storage Unit | x1 | -7/Factory Biometal Heavy Treads | x2 | -5/Factory | Preloaded Biometal Heavy Treads | x2 | -3/Research Alien Tech Used ----------------- Dimensional Node Initializer Phase Armor Sigix Broadsword Matter Drive High-powered Transdimensional Reconstructor Core Stripper Core Cannon Subatomic Replicator Supercharged Sigix Terminator Achievements -------------- None Challenges ------------ None Game ------ Seed SmallGodScrap Manual? 0 Play Time 07:49:07 Cumulative 839.7 hours Start 2020.09.13 @ 18:52:11 End 2020.09.15 @ 20:12:20 Sessions 9 Manual Loads 0 Difficulty Rogue Special Mode None Game No. 313 Rogue 313 Adventurer 0 Explorer 0 Win Type - Total 42 Types 10/12/8/3/1/1/7/0/0 Lore% 95 Gallery% 94 Achievement% 83 Wizard Run 0 Options --------- ASCII 0 Keyboard 0 Movement Numpad Keybinds 0 Fullscreen 2 Font 24/Smallcaps Map View 76x50 Tactical HUD 1 Map Filters NONE Filters NONE Steam 1 RUN: 069f6c18-c2c7-4486-a690-cb7a681281b8